bitfinex/quotes_BTCUSD_20251021
["timestamp","ask_amount","ask_price","bid_price","bid_amount"]
[1761056798585,0.20005602,110230.0,110220.0,0.14382415]
[1761056798718,0.20005602,110230.0,110220.0,0.02824297]
[1761056798925,0.23820531,110230.0,110220.0,0.14154374]
[1761056799159,0.18192521,110230.0,110220.0,0.14154374]
[1761056799362,0.18192521,110230.0,110220.0,0.13329745]
[1761056799363,0.20005602,110230.0,110220.0,0.13329745]
[1761056799520,1.20005602,110230.0,110220.0,0.01833495]
[1761056799714,1.20005602,110230.0,110220.0,0.14153495]
[1761056799715,1.18192521,110230.0,110220.0,0.14153495]
[1761056799932,1.27174422,110230.0,110220.0,0.13953495]
[1761056800129,1.27174422,110230.0,110220.0,0.13129745]
[1761056800130,1.18192521,110230.0,110220.0,0.13129745]
[1761056800554,1.18192521,110230.0,110220.0,0.13229745]
[1761056800759,1.18192521,110230.0,110220.0,0.13225745]
[1761056800960,1.18192521,110230.0,110220.0,0.13125745]
[1761056801163,1.27174422,110230.0,110220.0,0.13125745]
[1761056801486,1.27174422,110230.0,110220.0,0.13225745]
[1761056803120,1.18192521,110230.0,110220.0,0.13225745]
[1761056803868,1.18192521,110230.0,110220.0,0.58022198]
[1761056803987,1.18192521,110230.0,110220.0,0.56207646]
[1761056804690,1.18192521,110230.0,110220.0,0.23028114]
[1761056805042,1.18192521,110230.0,110220.0,0.14046213]
[1761056805182,1.18192521,110230.0,110220.0,0.13225745]
[1761056805183,1.27174422,110230.0,110220.0,0.13225745]
[1761056806540,1.27174422,110230.0,110220.0,0.00909745]
[1761056806770,1.36156323,110230.0,110220.0,0.00147863]
[1761056807511,2.10596073,110230.0,110220.0,1e-08]
[1761056808158,1.36156323,110230.0,110220.0,1e-08]
[1761056808314,1.18192521,110230.0,110220.0,1e-08]
[1761056808510,0.18145527,110220.0,110210.0,0.14126717]
[1761056808714,1.18194047,110230.0,110210.0,1.1644457]
[1761056809036,1.18194047,110230.0,110220.0,0.43081901]
[1761056809445,1.20064218,110230.0,110220.0,0.341]
[1761056809907,1.18192521,110230.0,110220.0,1.17521651]
[1761056810095,1.18192521,110230.0,110220.0,0.43081901]
[1761056810339,1.18192521,110230.0,110220.0,1.17521651]
[1761056810552,1.00048641,110230.0,110220.0,1.17421651]
[1761056810970,1.00048641,110230.0,110220.0,4.35567178]
[1761056811573,1.00048641,110230.0,110220.0,4.17421651]
[1761056811976,1.00048641,110230.0,110220.0,4.17621651]
[1761056811977,1.18192521,110230.0,110220.0,4.17621651]
[1761056812538,1.18192521,110230.0,110220.0,3.42981901]
[1761056812738,1.18192521,110230.0,110220.0,0.42981901]
[1761056812943,1.18192521,110230.0,110220.0,0.55285901]
[1761056813179,0.18145527,110220.0,110210.0,0.00783862]
[1761056813541,0.18145527,110220.0,110210.0,0.2388448]
[1761056813753,0.18145527,110220.0,110210.0,0.56069763]
[1761056813957,0.18145527,110220.0,110210.0,1.18205513]
[1761056814161,0.26520857,110220.0,110210.0,0.56069763]
[1761056814495,0.18145527,110220.0,110210.0,0.56069763]
[1761056814701,1.18192521,110230.0,110220.0,0.34]
[1761056814903,1.00048641,110230.0,110220.0,0.42981901]
[1761056815107,1.18192521,110230.0,110220.0,4.17421651]
[1761056815337,1.00048641,110230.0,110220.0,4.35567178]
[1761056815731,1.18192521,110230.0,110220.0,4.17421651]
[1761056815933,1.00048641,110230.0,110220.0,4.35567178]
[1761056816163,1.18192521,110230.0,110220.0,4.17521651]
[1761056816318,1.00048641,110230.0,110220.0,4.17521651]
[1761056816515,1.00048641,110230.0,110220.0,4.35667178]
[1761056817600,1.00048641,110230.0,110220.0,4.35567178]
[1761056818014,1.00048641,110230.0,110220.0,4.35767178]
[1761056818299,1.00048641,110230.0,110220.0,4.39385406]
[1761056818658,1.00048641,110230.0,110220.0,4.35567178]
[1761056818860,1.00048641,110230.0,110220.0,4.35867178]
[1761056819257,1.00048641,110230.0,110220.0,4.39485406]
[1761056819937,1.00048641,110230.0,110220.0,3.43281901]
[1761056820058,1.00048641,110230.0,110220.0,4.35867178]
[1761056820258,1.18192521,110230.0,110220.0,0.09281901]
[1761056820462,1.27174422,110230.0,110220.0,0.09281901]
[1761056820976,1.27174422,110230.0,110210.0,0.00783862]
[1761056820977,0.18145527,110220.0,110210.0,0.00783862]
[1761056821179,0.18145527,110220.0,110210.0,0.22057763]
[1761056821419,0.18145527,110220.0,110210.0,0.00783862]
[1761056821420,0.19958608,110220.0,110210.0,0.00783862]
[1761056821605,0.19958608,110220.0,110210.0,0.1390133]
[1761056821751,0.28687232,110220.0,110210.0,0.1390133]
[1761056821971,0.18145527,110220.0,110210.0,0.22057763]
[1761056822984,0.18145527,110220.0,110210.0,1.30497513]
[1761056823399,0.18145527,110220.0,110210.0,1.18205513]
[1761056823548,1.18192521,110230.0,110220.0,0.34]
[1761056823753,1.20762168,110230.0,110220.0,0.34]
[1761056824511,1.00048641,110230.0,110220.0,4.17421651]
[1761056824718,1.00048641,110230.0,110220.0,4.35567178]
[1761056825998,1.00048641,110230.0,110220.0,4.35667178]
[1761056826204,1.18192521,110230.0,110220.0,4.17521651]
[1761056826405,1.18192521,110230.0,110220.0,0.55269901]
[1761056826643,0.18145527,110220.0,110210.0,0.00783862]
[1761056826876,0.18145527,110220.0,110210.0,0.22053763]
[1761056827592,0.18145527,110220.0,110210.0,0.56053763]
[1761056828087,0.18145527,110220.0,110210.0,1.30493513]
[1761056828666,0.18145527,110220.0,110210.0,0.22049763]
[1761056828907,0.18145527,110220.0,110210.0,0.96489513]
[1761056829047,0.25284212,110220.0,110210.0,0.96489513]
[1761056829258,1.00048641,110230.0,110220.0,3.0]
[1761056829432,1.00048641,110230.0,110220.0,4.35567178]
[1761056831048,1.00048641,110230.0,110220.0,4.39185406]
[1761056831777,1.00048641,110230.0,110220.0,4.39385406]
[1761056832420,1.00048641,110230.0,110220.0,4.39185406]
[1761056832786,1.00048641,110230.0,110220.0,4.39385406]
[1761056833191,1.00048641,110230.0,110220.0,4.35767178]
[1761056833865,1.18192521,110230.0,110220.0,4.17621651]
[1761056834003,1.18192521,110230.0,110220.0,3.95897651]
[1761056834486,1.18192521,110230.0,110220.0,4.29897651]
[1761056834665,1.00048641,110230.0,110220.0,4.48043178]
[1761056835631,1.00048641,110230.0,110220.0,4.47843178]
[1761056835853,1.18192521,110230.0,110220.0,4.47843178]
[1761056836230,1.00048641,110230.0,110220.0,3.73603428]
[1761056836445,1.00048641,110230.0,110220.0,4.48043178]
[1761056836581,1.00048641,110230.0,110220.0,4.35567178]
[1761056836786,1.00048641,110230.0,110220.0,4.48039178]
[1761056837013,1.18192521,110230.0,110220.0,4.48039178]
[1761056837400,1.18192521,110230.0,110220.0,4.47839178]
[1761056837602,1.18192521,110230.0,110220.0,4.29693651]
[1761056838081,1.00048641,110230.0,110220.0,4.47839178]
[1761056838314,1.00048641,110230.0,110220.0,4.51457406]
[1761056838496,0.98573006,110230.0,110220.0,4.51457406]
[1761056839162,0.98573006,110230.0,110220.0,4.47839178]
[1761056839796,0.98573006,110230.0,110220.0,4.48039178]
[1761056840830,0.98573006,110230.0,110220.0,4.03628783]
[1761056841042,1.16716886,110230.0,110220.0,3.43181901]
[1761056841255,1.16716886,110230.0,110220.0,3.73595428]
[1761056841634,1.16716886,110230.0,110220.0,4.2177031]
[1761056841862,1.16716886,110230.0,110220.0,4.03624783]
[1761056842048,1.16716886,110230.0,110220.0,3.91356783]
[1761056842252,0.98573006,110230.0,110220.0,4.2550231]
[1761056842468,1.16716886,110230.0,110220.0,0.69620783]
[1761056842652,1.16716886,110230.0,110220.0,0.43181901]
[1761056842863,1.16716886,110230.0,110220.0,0.21445901]
[1761056843409,1.16716886,110230.0,110220.0,0.21245901]
[1761056843623,1.16716886,110230.0,110220.0,0.55245901]
[1761056843847,1.16716886,110230.0,110220.0,0.55445901]
[1761056844256,1.16716886,110230.0,110220.0,0.55245901]
[1761056845107,1.16716886,110230.0,110220.0,0.55345901]
[1761056846397,1.16716886,110230.0,110220.0,1.03520783]
[1761056846597,1.16716886,110230.0,110220.0,0.55345901]
[1761056847787,1.16716886,110230.0,110220.0,4.2166631]
[1761056847995,0.98573006,110230.0,110220.0,4.2166631]
[1761056849515,0.98573006,110230.0,110220.0,3.55345901]
[1761056849710,1.16716886,110230.0,110220.0,0.43081901]
[1761056849911,1.16716886,110230.0,110220.0,0.55337901]
[1761056850331,1.17690311,110230.0,110220.0,0.55337901]
[1761056850573,1.16716886,110230.0,110220.0,0.42981901]
[1761056850772,1.16716886,110230.0,110220.0,0.55237901]
[1761056850973,1.16716886,110230.0,110220.0,0.55437901]
[1761056851619,1.16716886,110230.0,110220.0,0.55237901]
[1761056851825,1.16716886,110230.0,110220.0,0.55337901]
[1761056851966,0.98573006,110230.0,110220.0,4.2165831]
[1761056852368,0.98573006,110230.0,110220.0,3.73483428]
[1761056852618,1.16716886,110230.0,110220.0,4.2165831]
[1761056852796,1.16716886,110230.0,110220.0,4.03512783]
[1761056853002,1.16716886,110230.0,110220.0,4.2165831]
[1761056853207,0.98573006,110230.0,110220.0,4.2165831]
[1761056854448,0.98573006,110230.0,110220.0,4.3647831]
[1761056854590,0.98573006,110230.0,110220.0,3.88303428]
[1761056854790,0.98573006,110230.0,110220.0,4.18232783]
[1761056854995,0.85665223,110230.0,110220.0,4.74351419]
[1761056855215,0.85665223,110230.0,110220.0,4.77365418]
[1761056855627,0.36289864,110230.0,110220.0,4.77365418]
[1761056855845,0.20025777,110230.0,110220.0,4.77365418]
[1761056856219,0.20025777,110230.0,110220.0,4.77165418]
[1761056856621,0.20025777,110230.0,110220.0,4.77465418]
[1761056856827,0.20025777,110230.0,110220.0,3.81115654]
[1761056857030,0.20025777,110230.0,110220.0,4.77465418]
[1761056857924,0.20025777,110230.0,110220.0,4.83165418]
[1761056858142,0.20025777,110230.0,110220.0,4.88921598]
[1761056858348,0.20025777,110230.0,110220.0,4.90221597]
[1761056858604,0.20025777,110230.0,110220.0,4.92947745]
[1761056859012,0.20025777,110230.0,110220.0,4.92647745]
[1761056859225,0.20025777,110230.0,110220.0,3.79920537]
[1761056859377,0.20025777,110230.0,110220.0,3.8784631]
[1761056859588,0.20025777,110230.0,110220.0,4.2184631]
[1761056859793,0.20025777,110230.0,110220.0,4.76453419]
[1761056859995,0.20025777,110230.0,110220.0,4.77453418]
[1761056860958,0.20025777,110230.0,110220.0,4.84336339]
[1761056861220,0.20025777,110230.0,110220.0,4.27978537]
[1761056861413,0.20025777,110230.0,110220.0,4.24360309]
[1761056861623,0.20025777,110230.0,110220.0,4.28278537]
[1761056861826,0.20025777,110230.0,110220.0,3.92464537]
[1761056862076,0.20025777,110230.0,110220.0,3.91464538]
[1761056862290,0.20025777,110230.0,110220.0,3.8784631]
[1761056862540,0.20025777,110230.0,110220.0,4.2154631]
[1761056862780,0.20025777,110230.0,110220.0,4.25164538]
[1761056862980,0.20025777,110230.0,110220.0,4.25364538]
[1761056864340,0.20025777,110230.0,110220.0,3.77189656]
[1761056864696,0.20025777,110230.0,110220.0,4.25364538]
[1761056865207,0.20025777,110230.0,110220.0,3.77189656]
[1761056865411,0.20025777,110230.0,110220.0,4.25364538]
[1761056866829,0.38169657,110230.0,110220.0,0.09181901]
[1761056867011,0.18648156,110230.0,110220.0,1.69588783]
[1761056867228,0.18648156,110230.0,110220.0,4.69588783]
[1761056867431,0.18648156,110230.0,110220.0,5.03588783]
[1761056867669,0.18648156,110230.0,110220.0,5.03388783]
[1761056867888,0.18648156,110230.0,110220.0,1.55213901]
[1761056868090,0.18648156,110230.0,110220.0,2.03388783]
[1761056868309,0.00504276,110230.0,110220.0,5.2153431]
[1761056868491,0.00504276,110230.0,110220.0,5.25152538]
[1761056868683,0.00504276,110230.0,110220.0,5.25352538]
[1761056869088,0.00504276,110230.0,110220.0,5.25152538]
[1761056869511,0.00504276,110230.0,110220.0,5.25352538]
[1761056870104,0.00504276,110230.0,110220.0,5.74527419]
[1761056870551,0.00504276,110230.0,110220.0,5.27352536]
[1761056871001,0.00504276,110230.0,110220.0,5.75527418]
[1761056871233,0.00504276,110230.0,110220.0,5.75327418]
[1761056871462,0.00504276,110230.0,110220.0,5.27352536]
[1761056872082,0.00504276,110230.0,110220.0,5.27152536]
[1761056872488,0.00504276,110230.0,110220.0,5.27452536]
[1761056872841,0.00504276,110230.0,110220.0,5.75627418]
[1761056873061,0.00504276,110230.0,110220.0,5.27452536]
[1761056874141,0.00504276,110230.0,110220.0,5.77441418]
[1761056875184,0.00504276,110230.0,110220.0,5.29566536]
[1761056875386,0.00504276,110230.0,110220.0,5.28566537]
[1761056875594,0.00504276,110230.0,110220.0,5.27566538]
[1761056875796,0.00504276,110230.0,110220.0,5.2334831]
[1761056875999,0.00504276,110230.0,110220.0,4.8934831]
[1761056876215,0.00504276,110230.0,110220.0,4.8964831]
[1761056876388,0.00504276,110230.0,110220.0,4.93266538]
[1761056876600,0.00504276,110230.0,110220.0,5.77141418]
[1761056876812,0.00504276,110230.0,110220.0,5.3069275]
[1761056877015,0.00504276,110230.0,110220.0,5.3089275]
[1761056877219,0.00504276,110230.0,110220.0,5.29892751]
[1761056877429,0.00504276,110230.0,110220.0,5.28166537]
[1761056877903,0.00504276,110230.0,110220.0,5.76341419]
[1761056878133,0.00504276,110230.0,110220.0,5.77341418]
[1761056878332,1.0,110240.0,110230.0,4.54925871]
[1761056878537,1.0,110240.0,110230.0,4.63922373]
[1761056879455,1.0,110240.0,110230.0,4.15747491]
[1761056879781,1.0,110240.0,110230.0,4.63922373]
[1761056880464,1.0,110240.0,110230.0,4.64222373]
[1761056881422,1.18142235,110240.0,110230.0,3.09296502]
[1761056881628,1.18142235,110240.0,110230.0,3.57471384]
[1761056881860,1.18142235,110240.0,110230.0,3.69687384]
[1761056882258,1.27124136,110240.0,110230.0,3.21512502]
[1761056882474,1.27124136,110240.0,110230.0,3.21212502]
[1761056882676,1.27124136,110240.0,110230.0,0.21212502]
[1761056882891,1.18142235,110240.0,110230.0,0.21412502]
[1761056883788,1.18142235,110240.0,110230.0,0.55412502]
[1761056884014,1.18142235,110240.0,110230.0,1.03387384]
[1761056884222,1.18142235,110240.0,110230.0,0.55312502]
[1761056884473,0.1814388,110230.0,110220.0,1.0]
[1761056884680,0.1814388,110230.0,110220.0,1.12226608]
[1761056884851,0.19956961,110230.0,110220.0,1.12226608]
[1761056885910,0.68131843,110230.0,110220.0,0.46039652]
[1761056886124,0.84282564,110230.0,110220.0,0.31126471]
[1761056886311,0.5193791,110230.0,110220.0,0.268733]
[1761056886517,0.83060901,110230.0,110220.0,1e-08]
[1761056886718,1.00112792,110230.0,110210.0,0.00034339]
[1761056886922,0.66320409,110220.0,110210.0,0.0008298]
[1761056887124,0.1814882,110200.0,110190.0,0.0004]
[1761056887362,0.68141646,110200.0,110190.0,0.0004]
[1761056887569,0.18153683,110200.0,110190.0,0.4604]
[1761056887726,0.19966764,110200.0,110190.0,0.14470137]
[1761056887928,0.28595646,110200.0,110190.0,0.14470137]
[1761056888137,0.28595646,110200.0,110190.0,0.02470137]
[1761056888138,0.26782565,110200.0,110190.0,0.02470137]
[1761056888499,0.26782565,110200.0,110190.0,0.0004]
[1761056888500,0.74957447,110200.0,110190.0,0.0004]
[1761056889078,1.70732457,110200.0,110190.0,1e-08]
[1761056889303,4.83940456,110200.0,110190.0,1e-08]
[1761056890091,4.82944457,110200.0,110190.0,1e-08]
[1761056890300,1.82944457,110200.0,110190.0,1e-08]
[1761056890594,4.82944457,110200.0,110190.0,1e-08]
[1761056890736,4.85591098,110200.0,110190.0,1e-08]
[1761056891142,4.86591097,110200.0,110190.0,1e-08]
[1761056891333,4.86391097,110200.0,110190.0,1e-08]
[1761056891744,4.87491096,110200.0,110190.0,1e-08]
[1761056892183,3.5777034,110180.0,110170.0,1e-08]
[1761056892427,3.87942142,110180.0,110170.0,1e-08]
[1761056892603,4.84291906,110180.0,110170.0,1e-08]
[1761056893371,4.36117024,110180.0,110170.0,1e-08]
[1761056893587,4.36117024,110180.0,110130.0,0.0004]
[1761056893588,0.18158707,110140.0,110130.0,0.0004]
[1761056893796,0.01813081,110140.0,110130.0,0.0004]
[1761056894031,0.28007231,110140.0,110130.0,0.0004]
[1761056894191,0.2619415,110140.0,110130.0,0.0004]
[1761056894795,0.26242749,110140.0,110130.0,0.0004]
[1761056895221,0.18207306,110140.0,110130.0,0.0004]
[1761056895430,0.20020387,110140.0,110130.0,0.0004]
[1761056896564,0.20020387,110140.0,110130.0,0.0014]
[1761056897233,0.20020387,110140.0,110130.0,0.0004]
[1761056897720,0.20020387,110140.0,110130.0,0.0014]
[1761056897876,0.23838272,110140.0,110130.0,0.0014]
[1761056898078,0.22025191,110140.0,110130.0,0.00246208]
[1761056898284,0.02653999,110140.0,110130.0,0.00246208]
[1761056898617,0.2255548,110140.0,110130.0,0.00346208]
[1761056898806,0.20812706,110140.0,110130.0,0.00346208]
[1761056900004,0.18158707,110140.0,110130.0,0.00346208]
[1761056900436,0.6814667,110140.0,110130.0,0.00346208]
[1761056900674,0.7531549,110140.0,110130.0,0.00346208]
[1761056900877,1.05517872,110140.0,110130.0,0.00346208]
[1761056901419,1.05517872,110140.0,110130.0,1e-08]
[1761056901626,1.48499773,110140.0,110130.0,1e-08]
[1761056901853,1.49499772,110140.0,110130.0,1e-08]
[1761056903043,2.14499773,110140.0,110130.0,1e-08]
[1761056903256,2.26707773,110140.0,110130.0,1e-08]
[1761056903382,2.01899644,110140.0,110130.0,1e-08]
[1761056903597,1.27140608,110140.0,110130.0,1e-08]
[1761056903797,1.0,110140.0,110130.0,1e-08]
[1761056904017,1.18158707,110140.0,110130.0,1e-08]
[1761056905028,1.92917743,110140.0,110130.0,0.00100001]
[1761056905233,1.18158707,110140.0,110130.0,0.00100001]
[1761056905439,2.01899644,110140.0,110130.0,0.00100001]
[1761056905815,1.85495226,110140.0,110130.0,0.00100001]
[1761056906393,1.85495226,110140.0,110130.0,1e-08]
[1761056906598,1.1073619,110140.0,110130.0,1e-08]
[1761056906737,1.85495226,110140.0,110130.0,0.00100001]
[1761056906946,1.1073619,110140.0,110130.0,0.00100001]
[1761056907142,1.94477127,110140.0,110130.0,0.00100001]
[1761056907346,1.98095355,110140.0,110130.0,0.00100001]
[1761056907529,1.98095355,110140.0,110130.0,1e-08]
[1761056908823,2.33095354,110140.0,110130.0,1e-08]
[1761056909232,2.29477126,110140.0,110130.0,1e-08]
[1761056909383,2.33095354,110140.0,110130.0,1e-08]
[1761056910260,2.35520425,110140.0,110130.0,1e-08]
[1761056910405,5.36520424,110140.0,110100.0,1e-08]
[1761056910620,1.05522819,110110.0,110100.0,1e-08]
[1761056910975,1.25893855,110110.0,110100.0,1e-08]
[1761056911138,0.51134819,110110.0,110100.0,1e-08]
[1761056911347,1.28625255,110110.0,110100.0,1e-08]
[1761056911550,0.22783531,110100.0,110090.0,1e-08]
[1761056911753,1.39524469,110100.0,110090.0,1e-08]
[1761056911957,1.4915335,110100.0,110090.0,1e-08]
[1761056912399,1.48153351,110100.0,110090.0,1e-08]
[1761056912755,1.4915335,110100.0,110090.0,0.000486]
[1761056912948,1.48153351,110100.0,110090.0,0.000486]
[1761056913164,1.14153351,110100.0,110090.0,0.000486]
[1761056913360,1.26353351,110100.0,110090.0,0.000486]
[1761056914197,1.14153351,110100.0,110090.0,0.000486]
[1761056914447,1.26353351,110100.0,110090.0,0.000486]
[1761056914634,1.60353351,110100.0,110090.0,1e-08]
[1761056914829,1.6135335,110100.0,110090.0,1e-08]
[1761056915190,1.6145335,110100.0,110090.0,1e-08]
[1761056915393,1.60453351,110100.0,110090.0,1e-08]
[1761056915592,1.6145335,110100.0,110090.0,1e-08]
[1761056916229,1.62453349,110100.0,110090.0,1e-08]
[1761056916622,1.72025349,110100.0,110090.0,1e-08]
[1761056916819,3.75494313,110100.0,110090.0,1e-08]
[1761056917073,3.76494312,110100.0,110090.0,1e-08]
[1761056917272,3.75494313,110100.0,110090.0,1e-08]
[1761056917393,3.88594312,110100.0,110090.0,1e-08]
[1761056917795,3.76494312,110100.0,110090.0,1e-08]
[1761056918029,3.97514313,110100.0,110090.0,1e-08]
[1761056918232,0.00908677,110050.0,110020.0,8e-05]
[1761056918444,0.1817686,110030.0,110020.0,8e-05]
[1761056918639,0.35433462,110030.0,110020.0,8e-05]
[1761056918910,0.2321448,110030.0,110020.0,8e-05]
[1761056919142,0.21865322,110050.0,110020.0,8e-05]
[1761056919344,0.19988552,110040.0,110020.0,8e-05]
[1761056919582,0.01813081,110040.0,110020.0,0.08989901]
[1761056920000,0.19132426,110050.0,110030.0,0.35283952]
[1761056920208,0.19132426,110050.0,110030.0,0.34]
[1761056920422,0.21953137,110050.0,110030.0,0.42981901]
[1761056920629,0.18175209,110040.0,110030.0,0.42981901]
[1761056921166,0.1817686,110030.0,110020.0,8e-05]
[1761056921368,0.1998829,110040.0,110020.0,8e-05]
[1761056921369,0.18175209,110040.0,110030.0,0.34]
[1761056921583,0.1998829,110040.0,110030.0,0.34]
[1761056921782,0.1998829,110040.0,110030.0,0.341]
[1761056921991,0.1998829,110040.0,110020.0,8e-05]
[1761056921992,0.1817686,110030.0,110020.0,8e-05]
[1761056923583,0.19989941,110030.0,110020.0,8e-05]
[1761056925180,0.01813081,110030.0,110020.0,8e-05]
[1761056925435,0.19989941,110030.0,110020.0,8e-05]
[1761056925662,0.19989941,110030.0,110020.0,0.02066777]
[1761056925876,1.0,110040.0,110020.0,0.35619664]
[1761056926075,0.01813081,110030.0,110020.0,0.34008]
[1761056926309,1.0,110040.0,110020.0,0.42989901]
[1761056926665,1.0,110040.0,110030.0,0.55181901]
[1761056926848,1.0,110040.0,110030.0,0.73358761]
[1761056927043,1.0,110040.0,110030.0,1.29940937]
[1761056927255,1.0,110040.0,110030.0,0.55181901]
[1761056927812,1.18175209,110040.0,110030.0,0.462]
[1761056928466,0.1817686,110030.0,110020.0,0.00108]
[1761056928696,0.19989941,110030.0,110020.0,0.00108]
[1761056929488,0.19989941,110030.0,110020.0,8e-05]
[1761056929686,0.01813081,110030.0,110020.0,8e-05]
[1761056929887,0.19989941,110030.0,110020.0,8e-05]
[1761056930809,0.19989941,110030.0,110020.0,0.01825851]
[1761056931155,0.19989941,110030.0,110020.0,8e-05]
[1761056931469,0.01813081,110030.0,110020.0,0.74767036]
[1761056931667,0.01813081,110030.0,110020.0,0.74867036]
[1761056931869,0.01813081,110030.0,110020.0,0.00108]
[1761056932064,0.01813081,110030.0,110020.0,0.14121851]
[1761056932497,0.01813081,110030.0,110020.0,0.14362777]
[1761056932723,0.01813081,110030.0,110020.0,0.14262777]
[1761056932974,0.19989941,110030.0,110020.0,0.89021813]
[1761056933142,1.0,110040.0,110020.0,0.96285863]
[1761056933342,1.0,110040.0,110030.0,0.83740937]
[1761056933924,1.0,110040.0,110030.0,1.17740937]
[1761056934704,1.0,110040.0,110030.0,0.42981901]
[1761056934909,1.0,110040.0,110030.0,1.17740937]
[1761056935380,1.0,110040.0,110030.0,0.34]
[1761056935381,1.18175209,110040.0,110030.0,0.34]
[1761056935727,1.18175209,110040.0,110030.0,0.341]
[1761056937844,1.18175209,110040.0,110030.0,0.001]
[1761056938054,0.1817686,110030.0,110020.0,0.12204]
[1761056938365,0.19989941,110030.0,110020.0,8e-05]
[1761056938544,0.31696819,110030.0,110020.0,8e-05]
[1761056938750,0.1817686,110030.0,110020.0,8e-05]
[1761056938962,0.19827767,110030.0,110020.0,8e-05]
[1761056939438,1.18175317,110040.0,110020.0,0.08989901]
[1761056939703,0.19989941,110030.0,110020.0,0.34008]
[1761056939934,0.19989941,110030.0,110020.0,0.00108]
[1761056941327,0.28971842,110030.0,110020.0,8e-05]
[1761056941685,0.1817686,110030.0,110020.0,8e-05]
[1761056941881,1.18175317,110040.0,110020.0,0.08989901]
[1761056942273,1.0,110040.0,110030.0,0.12192]
[1761056942476,1.18175209,110040.0,110030.0,0.12192]
[1761056943107,1.18175209,110040.0,110020.0,0.74767036]
[1761056943108,0.1817686,110030.0,110020.0,0.74767036]
[1761056943307,0.19989941,110030.0,110020.0,0.122]
[1761056943955,0.19989941,110030.0,110020.0,0.00248926]
[1761056944160,0.1817686,110030.0,110020.0,0.00248926]
[1761056944360,0.19989941,110030.0,110020.0,0.00248926]
[1761056944603,0.1817686,110030.0,110020.0,0.00248926]
[1761056944809,0.19989941,110030.0,110020.0,0.00248926]
[1761056945142,0.19989941,110030.0,110020.0,0.75007962]
[1761056945559,0.19989941,110030.0,110020.0,0.00248926]
[1761056946697,0.1817686,110030.0,110020.0,0.00348926]
[1761056947138,0.1817686,110030.0,110020.0,0.75107962]
[1761056947984,0.1817686,110030.0,110020.0,0.00348926]
[1761056948203,1.18176105,110040.0,110020.0,0.00348926]
[1761056948204,1.18176105,110040.0,110020.0,1.19907714]
[1761056948397,1.0,110040.0,110030.0,0.86947036]
[1761056948598,1.0,110040.0,110030.0,0.95928937]
[1761056949493,1.0,110040.0,110030.0,1.14105797]
[1761056949697,1.0,110040.0,110030.0,4.48105797]
[1761056949914,1.0,110040.0,110030.0,4.51724025]
[1761056950249,1.0,110040.0,110030.0,4.51924025]
[1761056950851,1.0,110040.0,110030.0,4.53724023]
[1761056951116,1.0,110040.0,110030.0,4.60454325]
[1761056951656,1.0,110040.0,110030.0,4.69282326]
[1761056951882,1.0,110040.0,110030.0,4.70282325]
[1761056952525,1.0,110040.0,110030.0,4.70482325]
[1761056952867,1.0,110040.0,110030.0,4.70282325]
[1761056953269,1.0,110040.0,110030.0,4.70582325]
[1761056953464,0.97271355,110040.0,110030.0,4.70582325]
[1761056953684,0.9454271,110040.0,110030.0,4.70788814]
[1761056953916,0.91814065,110040.0,110030.0,4.70788814]
[1761056954240,0.8908542,110040.0,110030.0,4.70788814]
[1761056954643,0.19075365,110090.0,110070.0,0.34]
[1761056954874,0.19075365,110090.0,110080.0,0.55165901]
[1761056955058,0.19075365,110090.0,110080.0,0.552003]
[1761056955272,0.18165323,110100.0,110080.0,1.29959336]
[1761056955908,0.19980035,110090.0,110080.0,0.552003]
[1761056956113,0.19980035,110090.0,110080.0,0.00034399]
[1761056956297,0.19980035,110090.0,110080.0,0.12218399]
[1761056956506,0.19980035,110090.0,110080.0,0.14035259]
[1761056956850,0.18165323,110100.0,110080.0,0.95959336]
[1761056957059,0.18166954,110090.0,110080.0,0.552003]
[1761056957316,0.18166954,110090.0,110080.0,0.553003]
[1761056957474,0.18166954,110090.0,110080.0,0.57405301]
[1761056957688,0.18165323,110100.0,110080.0,0.57405301]
[1761056957879,0.18165894,110100.0,110080.0,1.32064337]
[1761056958155,0.18165894,110100.0,110090.0,0.10798596]
[1761056958343,0.18165894,110100.0,110090.0,0.08981901]
[1761056958344,0.19930499,110100.0,110090.0,0.08981901]
[1761056958819,0.18166954,110090.0,110080.0,0.483234]
[1761056959027,0.18166954,110090.0,110080.0,0.57305301]
[1761056959440,0.18166954,110090.0,110080.0,0.57301301]
[1761056959842,0.18165894,110100.0,110080.0,0.57301301]
[1761056960042,0.18165894,110100.0,110090.0,0.01816695]
[1761056960246,0.18165894,110100.0,110090.0,0.22978596]
[1761056960247,0.18165304,110100.0,110090.0,0.22978596]
[1761056960443,0.19978385,110100.0,110090.0,0.08981901]
[1761056960906,0.19978385,110100.0,110090.0,0.21161901]
[1761056961049,0.18165304,110100.0,110090.0,0.95920937]
[1761056961250,0.18165304,110100.0,110090.0,1.29920937]
[1761056961455,0.1908282,110110.0,110090.0,0.95920937]
[1761056961678,0.18165304,110100.0,110090.0,0.55161901]
[1761056962292,0.19978385,110100.0,110080.0,0.021394]
[1761056962497,0.18166954,110090.0,110080.0,0.021394]
[1761056962664,0.18166954,110090.0,110080.0,0.143154]
[1761056962873,0.19980035,110090.0,110080.0,0.143154]
[1761056963726,0.19980035,110090.0,110080.0,0.144154]
[1761056963901,0.19980035,110090.0,110080.0,0.022394]
[1761056964473,0.19980035,110090.0,110080.0,0.00134399]
[1761056964687,0.20077579,110090.0,110080.0,0.00134399]
[1761056964886,0.19207889,110090.0,110080.0,0.02294722]
[1761056965117,0.19980035,110090.0,110080.0,0.00134399]
[1761056965314,0.18165304,110100.0,110080.0,0.60637368]
[1761056965684,0.18166954,110090.0,110080.0,0.12306399]
[1761056966071,0.19980035,110090.0,110080.0,0.12306399]
[1761056966311,0.19419659,110090.0,110080.0,0.12306399]
[1761056966570,1.14959905,110090.0,110070.0,0.00014619]
[1761056966784,0.87653474,110080.0,110070.0,0.00014619]
[1761056967035,0.89942216,110080.0,110070.0,1e-08]
[1761056967282,0.87653474,110080.0,110070.0,1e-08]
[1761056967493,1.26430945,110080.0,110070.0,1e-08]
[1761056967742,1.76090875,110080.0,110070.0,1e-08]
[1761056967938,1.77090874,110080.0,110070.0,1e-08]
[1761056968332,0.27150505,110080.0,110070.0,1e-08]
[1761056968537,0.87653474,110080.0,110070.0,1e-08]
[1761056968765,1.79195234,110080.0,110070.0,1e-08]
[1761056969528,0.80045092,110080.0,110070.0,1e-08]
[1761056969730,1.28376061,110080.0,110070.0,1e-08]
[1761056970198,1.27376062,110080.0,110070.0,1e-08]
[1761056970330,0.64768733,110080.0,110070.0,1e-08]
[1761056970529,0.76940733,110080.0,110070.0,1e-08]
[1761056970994,0.27150505,110080.0,110070.0,1e-08]
[1761056971197,0.18168604,110080.0,110070.0,1e-08]